fUST/lending_fUST_20260212
["ID","MTS","AMOUNT","RATE_DAILY","PERIOD"]
[405201235,1770900673874,-1562.47739,0.00038356,120]
[405201236,1770900673884,-1562.47739,0.00038356,120]
[405201237,1770900673894,-1562.47739,0.00038356,120]
[405201238,1770900673903,-1562.47739,0.00038356,120]
[405201239,1770900673913,-1562.47739,0.00038356,120]
[405201240,1770900673922,-1562.47739,0.00038356,120]
[405201241,1770900673932,-1562.47739,0.00038356,120]
[405201242,1770900673941,-1562.47739,0.00038356,120]
[405201243,1770900673951,-1562.47739,0.00038356,120]
[405201244,1770900673960,-1562.47739,0.00038356,120]
[405201245,1770900673969,-1562.47739,0.00038356,120]
[405201246,1770900673979,-1562.47739,0.00038356,120]
[405201247,1770900673989,-1562.477396,0.00038356,120]
[405201248,1770900673999,-151.000016,0.00038356,120]
[405201249,1770900674008,-151.0,0.00038356,120]
[405201250,1770900674018,-156.972997,0.00038356,120]
[405201251,1770900674028,-151.0,0.00038356,120]
[405201252,1770900674037,-151.0,0.00038356,120]
[405201253,1770900674047,-151.0,0.00038356,120]
[405201254,1770900674056,-151.0,0.00038356,120]
[405201255,1770900674066,-151.0,0.00038356,120]
[405201256,1770900674075,-151.0,0.00038356,120]
[405201257,1770900674085,-151.0,0.00038356,120]
[405201258,1770900674095,-151.0,0.00038356,120]
[405201259,1770900674106,-151.0,0.00038356,120]
[405201260,1770900674116,-151.0,0.00038356,120]
[405201261,1770900674125,-151.0,0.00038356,120]
[405201262,1770900674135,-151.0,0.00038356,120]
[405201263,1770900674144,-151.0,0.00038356,120]
[405201264,1770900674154,-151.0,0.00038356,120]
[405201265,1770900674163,-151.0,0.00038356,120]
[405201266,1770900674175,-164.216979,0.00038356,120]
[405201267,1770900674185,-151.0,0.00038356,120]
[405201268,1770900674194,-151.0,0.00038356,120]
[405201269,1770900674204,-151.0,0.00038356,120]
[405201270,1770900674214,-151.0,0.00038356,120]
[405201271,1770900674223,-151.0,0.00038356,120]
[405201272,1770900674232,-151.0,0.00038356,120]
[405201273,1770900674250,-151.0,0.00038356,120]
[405201274,1770900674265,-151.0,0.00038356,120]
[405201275,1770900674283,-151.0,0.00038356,120]
[405201276,1770900674301,-151.0,0.00038356,120]
[405201277,1770900674320,-151.0,0.00038356,120]
[405201278,1770900674337,-151.0,0.00038356,120]
[405201279,1770900674353,-151.0,0.00038356,120]
[405201280,1770900674371,-151.0,0.00038356,120]
[405201281,1770900674385,-151.0,0.00038356,120]
[405201282,1770900674402,-151.0,0.00038356,120]
[405201283,1770900674420,-151.0,0.00038356,120]
[405201284,1770900674439,-218.780907,0.00038356,120]
[405201285,1770900674451,-151.0,0.00038356,120]
[405201286,1770900674469,-151.0,0.00038356,120]
[405201287,1770900674484,-151.0,0.00038356,120]
[405201288,1770900674500,-151.0,0.00038356,120]
[405201289,1770900674514,-151.0,0.00038356,120]
[405201290,1770900674528,-151.000005,0.00038356,120]
[405201291,1770900674542,-396.5897,0.00038356,120]
[405201292,1770900674558,-396.5897,0.00038356,120]
[405201293,1770900674573,-396.5897,0.00038356,120]
[405201294,1770900674586,-396.5897,0.00038356,120]
[405201295,1770900674600,-396.5897,0.00038356,120]
[405201296,1770900674615,-396.5897,0.00038356,120]
[405201297,1770900674629,-396.5897,0.00038356,120]
[405201298,1770900674642,-396.5897,0.00038356,120]
[405201299,1770900674655,-396.5897,0.00038356,120]
[405201300,1770900674668,-396.5897,0.00038356,120]
[405201301,1770900674682,-396.5897,0.00038356,120]
[405201302,1770900674695,-396.5897,0.00038356,120]
[405201303,1770900674710,-218.405615,0.00038356,120]
[405201304,1770900674723,-396.5897,0.00038356,120]
[405201305,1770900674738,-218.405615,0.00038356,120]
[405201306,1770900674751,-396.5897,0.00038356,120]
[405201307,1770900674765,-218.405615,0.00038356,120]
[405201308,1770900674778,-396.5897,0.00038356,120]
[405201309,1770900674792,-218.405615,0.00038356,120]
[405201310,1770900674805,-218.405615,0.00038356,120]
[405201311,1770900674819,-396.5897,0.00038356,120]
[405201312,1770900674832,-218.405615,0.00038356,120]
[405201313,1770900674847,-396.5897,0.00038356,120]
[405201314,1770900674862,-218.405615,0.00038356,120]
[405201315,1770900674876,-396.5897,0.00038356,120]
[405201316,1770900674889,-218.405615,0.00038356,120]
[405201317,1770900674904,-396.5897,0.00038356,120]
[405201318,1770900674918,-396.589703,0.00038356,120]
[405201319,1770900674933,-218.405615,0.00038356,120]
[405201320,1770900674947,-218.405615,0.00038356,120]
[405201321,1770900674961,-218.405615,0.00038356,120]
[405201322,1770900674975,-218.405615,0.00038356,120]
[405201323,1770900674989,-218.405615,0.00038356,120]
[405201324,1770900675003,-218.405615,0.00038356,120]
[405201325,1770900675017,-218.405615,0.00038356,120]
[405201326,1770900675032,-218.405615,0.00038356,120]
[405201327,1770900675046,-218.405615,0.00038356,120]
[405201328,1770900675060,-218.405615,0.00038356,120]
[405201329,1770900675075,-218.405615,0.00038356,120]
[405201330,1770900675088,-218.405623,0.00038356,120]
[405201331,1770900675105,-151.0,0.00038356,120]
[405201332,1770900675118,-151.0,0.00038356,120]
[405201333,1770900675243,-399.302052,0.00038356,120]
[405201334,1770900675254,-151.0,0.00038356,120]
[405201335,1770900675264,-399.302052,0.00038356,120]
[405201336,1770900675273,-160.916731,0.00038356,120]
[405201337,1770900675283,-399.302052,0.00038356,120]
[405201338,1770900675293,-399.302052,0.00038356,120]
[405201339,1770900675303,-399.302052,0.00038356,120]
[405201340,1770900675312,-399.302052,0.00038356,120]
[405201341,1770900675322,-399.302052,0.00038356,120]
[405201342,1770900675331,-399.302052,0.00038356,120]
[405201343,1770900675341,-399.302052,0.00038356,120]
[405201344,1770900675350,-399.302052,0.00038356,120]
[405201345,1770900675360,-399.302052,0.00038356,120]
[405201346,1770900675370,-399.302052,0.00038356,120]
[405201347,1770900675379,-399.302052,0.00038356,120]
[405201348,1770900675389,-399.302052,0.00038356,120]
[405201349,1770900675399,-399.302052,0.00038356,120]
[405201350,1770900675408,-399.302052,0.00038356,120]
[405201351,1770900675418,-399.302052,0.00038356,120]
[405201352,1770900675428,-399.302052,0.00038356,120]
[405201353,1770900675437,-399.302052,0.00038356,120]
[405201354,1770900675448,-399.302051,0.00038356,120]
[405201355,1770900675457,-225.660772,0.00038356,120]
[405201356,1770900675466,-151.0,0.00038356,120]
[405201357,1770900675475,-151.0,0.00038356,120]
[405201358,1770900675485,-151.0,0.00038356,120]
[405201359,1770900675494,-151.0,0.00038356,120]
[405201360,1770900675503,-204.41168,0.00038356,120]
[405201361,1770900675513,-151.448416,0.00038356,120]
[405201362,1770900675523,-151.0,0.00038356,120]
[405201363,1770900675532,-151.0,0.00038356,120]
[405201364,1770900675542,-164.896021,0.00038356,120]
[405201365,1770900675552,-151.0,0.00038356,7]
[405201366,1770900675562,-151.0,0.00038356,120]
[405201367,1770900675571,-151.0,0.00038356,120]
[405201368,1770900675581,-159.340251,0.00038356,7]
[405201369,1770900675591,-151.0,0.00038356,120]
[405201370,1770900675601,-151.0,0.00038356,120]
[405201371,1770900675610,-151.0,0.00038356,120]
[405201372,1770900675619,-151.0,0.00038356,120]
[405201373,1770900675628,-164.16313,0.00038356,120]
[405201374,1770900675637,-1003.896176,0.00038356,120]
[405201375,1770900675646,-1003.896176,0.00038356,120]
[405201376,1770900675657,-1003.896176,0.00038356,120]
[405201377,1770900675666,-1003.896176,0.00038356,120]
[405201378,1770900675675,-1003.896176,0.00038356,120]
[405201379,1770900675684,-1003.896176,0.00038356,120]
[405201380,1770900675694,-1003.896176,0.00038356,120]
[405201381,1770900675704,-1003.896176,0.00038356,120]
[405201382,1770900675713,-1003.896176,0.00038356,120]
[405201383,1770900675722,-1003.896176,0.00038356,120]
[405201384,1770900675731,-1003.896176,0.00038356,120]
[405201385,1770900675740,-1003.896176,0.00038356,120]
[405201386,1770900675749,-1003.896176,0.00038356,120]
[405201387,1770900675757,-1003.896176,0.00038356,120]
[405201388,1770900675765,-1003.896176,0.00038356,120]
[405201389,1770900675773,-1003.896176,0.00038356,120]
[405201390,1770900675782,-1003.896176,0.00038356,120]
[405201391,1770900675790,-1003.896176,0.00038356,120]
[405201392,1770900675799,-1003.896176,0.00038356,120]
[405201393,1770900675808,-1003.896166,0.00038356,120]
[405201394,1770900675817,-222.80348,0.00038356,7]
[405201395,1770900675826,-222.80348,0.00038356,7]
[405201396,1770900675834,-222.80348,0.00038356,7]
[405201397,1770900675843,-222.80348,0.00038356,7]
[405201398,1770900675852,-222.80348,0.00038356,7]
[405201399,1770900675861,-222.80348,0.00038356,7]
[405201400,1770900675870,-222.80348,0.00038356,7]
[405201401,1770900675879,-222.80348,0.00038356,7]
[405201402,1770900675888,-222.80348,0.00038356,7]
[405201403,1770900675897,-222.80348,0.00038356,7]
[405201404,1770900675906,-151.0,0.00038356,120]
[405201405,1770900675916,-165.488969,0.00038356,120]
[405201406,1770900675925,-222.80348,0.00038356,7]
[405201407,1770900675936,-222.80348,0.00038356,7]
[405201408,1770900675945,-222.80348,0.00038356,7]
[405201409,1770900675955,-222.80348,0.00038356,7]
[405201410,1770900675964,-222.80348,0.00038356,7]
[405201411,1770900675973,-222.80348,0.00038356,7]
[405201412,1770900675983,-222.80348,0.00038356,7]
[405201413,1770900675993,-222.80348,0.00038356,7]
[405201414,1770900676002,-222.80348,0.00038356,7]
[405201415,1770900676012,-222.80349,0.00038356,7]
[405201416,1770900676021,-151.0,0.00038356,120]
[405201417,1770900676031,-151.0,0.00038356,120]
[405201418,1770900676041,-154.13399,0.00038356,120]
[405201419,1770900676051,-209.982659,0.00038356,2]
[405201420,1770900676060,-264.064962,0.00038356,120]
[405201421,1770900676069,-151.0,0.00038356,120]
[405201422,1770900676079,-2479.751658,0.00038356,120]
[405201423,1770900676089,-151.0,0.00038356,120]
[405201424,1770900676101,-2479.751658,0.00038356,120]
[405201425,1770900676110,-151.0,0.00038356,120]
[405201426,1770900676120,-2479.751658,0.00038356,120]
[405201427,1770900676129,-2479.751658,0.00038356,120]
[405201428,1770900676139,-2479.751658,0.00038356,120]
[405201429,1770900676150,-151.0,0.00038356,120]
[405201430,1770900676159,-2479.751658,0.00038356,120]
[405201431,1770900676169,-2479.751658,0.00038356,120]
[405201432,1770900676179,-2479.751658,0.00038356,120]
[405201433,1770900676188,-2479.751658,0.00038356,120]
[405201434,1770900676198,-2479.751658,0.00038356,120]
[405201435,1770900676207,-1018.448503,0.00038356,120]
[405201436,1770900676217,-2479.751658,0.00038356,120]
[405201437,1770900676226,-1018.448503,0.00038356,120]
[405201438,1770900676237,-2479.751658,0.00038356,120]
[405201439,1770900676246,-151.0,0.00038356,120]
[405201440,1770900676256,-1018.448503,0.00038356,120]
[405201441,1770900676265,-2479.751658,0.00038356,120]
[405201442,1770900676275,-151.0,0.00038356,120]
[405201443,1770900676284,-1018.448503,0.00038356,120]
[405201444,1770900676294,-2479.751658,0.00038356,120]
[405201445,1770900676303,-191.171875,0.00038356,120]
[405201446,1770900676313,-1018.448503,0.00038356,120]
[405201447,1770900676323,-2479.751658,0.00038356,120]
[405201448,1770900676333,-200.0,0.00038421,120]
[405201449,1770900676343,-2258.0,0.00038452,5]
[405201450,1770900676352,-166.46,0.00038495,120]
[405201451,1770900676362,-166.46,0.00038495,120]
[405201452,1770900676371,-166.46,0.00038495,120]
[405201453,1770900676382,-166.46,0.00038495,120]
[405201454,1770900676392,-166.46,0.00038495,120]
[405201455,1770900676401,-3184.59484262,0.000385,120]
[405201456,1770900676411,-1781.39,0.000385,14]
[405201457,1770900676421,-49376.03363768,0.0003861,2]
[405201458,1770900676431,-583.7,0.0003863,5]
[405201459,1770900676440,-771.02,0.0003863,5]
[405201460,1770900676450,-1000.0,0.0003863,2]
[405201461,1770900676459,-1117.07,0.0003863,5]
[405201462,1770900676468,-500.0,0.0003863,5]
[405201463,1770900676477,-1000.0,0.0003863,2]
[405201464,1770900676487,-939.98,0.0003863,5]
[405201465,1770900676497,-914.41,0.0003863,5]
[405201466,1770900676507,-742.27,0.0003863,5]
[405201467,1770900676516,-863.41,0.0003863,5]
[405201468,1770900676526,-500.0,0.0003863,5]
[405201469,1770900676535,-666.32,0.0003863,5]
[405201470,1770900676545,-853.93,0.0003863,5]
[405201471,1770900676555,-308.64,0.0003863,5]
[405201472,1770900676564,-500.0,0.0003863,5]
[405201473,1770900676574,-500.0,0.0003863,5]
[405201474,1770900676586,-500.0,0.0003863,5]
[405201475,1770900676596,-707.95,0.0003863,5]
[405201476,1770900676606,-773.6,0.0003863,5]
[405201477,1770900676616,-500.0,0.0003863,5]
[405201478,1770900676626,-1614.44,0.0003863,5]
[405201479,1770900676635,-538.5,0.0003863,5]
[405201480,1770900676645,-517.22,0.0003863,5]
[405201481,1770900676654,-500.0,0.0003863,5]
[405201482,1770900676664,-222.11046068,0.0003863,5]
[405201483,1770900676673,-8808.21,0.0003863,5]
[405201484,1770900676683,-593.39,0.0003863,2]
[405201485,1770900676692,-2336.57,0.0003863,5]
[405201486,1770900676783,-12247.88,0.0003863,5]
[405201487,1770900676793,-1253.57,0.0003863,5]
[405201488,1770900676803,-715.12,0.0003863,5]
[405201489,1770900676813,-5005.86,0.0003863,2]
[405201490,1770900676823,-500.0,0.0003863,5]
[405201491,1770900676833,-500.0,0.0003863,5]
[405201492,1770900676843,-702.48,0.0003863,5]
[405201493,1770900676853,-4185.11,0.0003863,5]
[405201494,1770900676862,-804.1,0.0003863,5]
[405201495,1770900676872,-1795.55,0.0003863,5]
[405201496,1770900676881,-680.21,0.0003863,5]
[405201497,1770900676891,-3078.96,0.0003863,2]
[405201498,1770900676901,-500.0,0.0003863,5]
[405201499,1770900676911,-61531.34,0.0003863,5]
[405201500,1770900676921,-504.37,0.0003863,5]
[405201501,1770900676931,-769.52,0.0003863,5]
[405201502,1770900676940,-200.0,0.00038648,120]
[405201503,1770900676950,-252.0,0.0003866,36]
[405201504,1770900676959,-3736.04990665,0.00038679,120]
[405201505,1770900676969,-392.0,0.000388,58]
[405201506,1770900676978,-3753.00360231,0.00038834,2]
[405201507,1770900676988,-1000.0,0.0003885,60]
[405201508,1770900676998,-492.0,0.0003885,60]
[405201509,1770900677007,-64515.02385697,0.000389,30]
[405201510,1770900677016,-25059.51058427,0.000389,2]
[405201511,1770900677027,-583.7,0.00038904,5]
[405201512,1770900677036,-771.02,0.00038904,5]
[405201513,1770900677046,-1000.0,0.00038904,2]
[405201514,1770900677055,-1117.07,0.00038904,5]
[405201515,1770900677064,-500.0,0.00038904,5]
[405201516,1770900677074,-1000.0,0.00038904,2]
[405201517,1770900677083,-939.98,0.00038904,5]
[405201518,1770900677093,-914.41,0.00038904,5]
[405201519,1770900677106,-742.27,0.00038904,5]
[405201520,1770900677116,-863.41,0.00038904,5]
[405201521,1770900677126,-500.0,0.00038904,5]
[405201522,1770900677136,-666.32,0.00038904,5]
[405201523,1770900677146,-853.93,0.00038904,5]
[405201524,1770900677156,-308.64,0.00038904,5]
[405201525,1770900677165,-500.0,0.00038904,5]
[405201526,1770900677176,-500.0,0.00038904,5]
[405201527,1770900677186,-500.0,0.00038904,5]
[405201528,1770900677195,-707.95,0.00038904,5]
[405201529,1770900677204,-773.6,0.00038904,5]
[405201530,1770900677214,-500.0,0.00038904,5]
[405201531,1770900677223,-1614.44,0.00038904,5]
[405201532,1770900677232,-538.5,0.00038904,5]
[405201533,1770900677241,-517.22,0.00038904,5]
[405201534,1770900677250,-500.0,0.00038904,5]
[405201535,1770900677259,-8808.21,0.00038904,5]
[405201536,1770900677269,-593.39,0.00038904,2]
[405201537,1770900677278,-2336.57,0.00038904,5]
[405201538,1770900677287,-12247.88,0.00038904,5]
[405201539,1770900677296,-1253.57,0.00038904,5]
[405201540,1770900677304,-715.12,0.00038904,5]
[405201541,1770900677312,-5005.86,0.00038904,2]
[405201542,1770900677321,-500.0,0.00038904,5]
[405201543,1770900677330,-500.0,0.00038904,5]
[405201544,1770900677340,-702.48,0.00038904,5]
[405201545,1770900677349,-4185.11,0.00038904,5]
[405201546,1770900677358,-804.1,0.00038904,5]
[405201547,1770900677366,-1795.55,0.00038904,5]
[405201548,1770900677375,-680.21,0.00038904,5]
[405201549,1770900677384,-3078.96,0.00038904,2]
[405201550,1770900677392,-209.03584696,0.00038904,5]
[405201551,1770900677401,-61531.34,0.00038904,5]
[405201552,1770900677409,-504.37,0.00038904,5]
[405201553,1770900677418,-769.52,0.00038904,5]
[405201554,1770900677426,-200.0,0.00038937,120]
[405201555,1770900677434,-490263.77814007,0.00039,2]
[405201556,1770900677442,-17429.53286627,0.00039,120]
[405201557,1770900677451,-500.0,0.00039,120]
[405201558,1770900677459,-200.0,0.00039,2]
[405201559,1770900677467,-200.0,0.00039,2]
[405201560,1770900677476,-200.0,0.00039,2]
[405201561,1770900677485,-1682.89815424,0.00039,2]
[405201562,1770900677495,-11330.0,0.00039,120]
[405201563,1770900677504,-55241.74908873,0.00039,120]
[405201564,1770900677514,-179.62682864,0.00039,120]
[405201565,1770900677524,-1027.76104211,0.00039,7]
[405201566,1770900677534,-151.0,0.00039041,120]
[405201567,1770900677543,-151.0,0.00039041,120]
[405201568,1770900677552,-2166.0,0.00039106,2]
[405201569,1770900677562,-633.0,0.00039106,2]
[405201570,1770900677571,-168.2308,0.00039131,2]
[405201571,1770900677581,-583.7,0.00039178,5]
[405201572,1770900677591,-771.02,0.00039178,5]
[405201573,1770900677600,-767.21105081,0.00039178,2]
[405201574,1770900677610,-1117.07,0.00039178,5]
[405201575,1770900677619,-500.0,0.00039178,5]
[405201576,1770900677628,-670.16674504,0.00039178,2]
[405201577,1770900677637,-939.98,0.00039178,5]
[405201578,1770900677646,-914.41,0.00039178,5]
[405201579,1770900677655,-742.27,0.00039178,5]
[405201580,1770900677664,-863.41,0.00039178,5]
[405201581,1770900677675,-500.0,0.00039178,5]
[405201582,1770900677684,-666.32,0.00039178,5]
[405201583,1770900677693,-853.93,0.00039178,5]
[405201584,1770900677702,-308.64,0.00039178,5]
[405201585,1770900677711,-500.0,0.00039178,5]
[405201586,1770900677720,-500.0,0.00039178,5]
[405201587,1770900677729,-500.0,0.00039178,5]
[405201588,1770900677740,-707.95,0.00039178,5]
[405201589,1770900677749,-773.6,0.00039178,5]
[405201590,1770900677757,-500.0,0.00039178,5]
[405201591,1770900677766,-1614.44,0.00039178,5]
[405201592,1770900677774,-538.5,0.00039178,5]
[405201593,1770900677782,-517.22,0.00039178,5]
[405201594,1770900677791,-500.0,0.00039178,5]
[405201595,1770900677799,-8808.21,0.00039178,5]
[405201596,1770900677807,-593.39,0.00039178,2]
[405201597,1770900677816,-2336.57,0.00039178,5]
[405201598,1770900677827,-12247.88,0.00039178,5]
[405201599,1770900677836,-1253.57,0.00039178,5]
[405201600,1770900677845,-715.12,0.00039178,5]
[405201601,1770900677854,-5005.86,0.00039178,2]
[405201602,1770900677863,-500.0,0.00039178,5]
[405201603,1770900677872,-500.0,0.00039178,5]
[405201604,1770900677881,-702.48,0.00039178,5]
[405201605,1770900677890,-4185.11,0.00039178,5]
[405201606,1770900677899,-804.1,0.00039178,5]
[405201607,1770900677909,-1795.55,0.00039178,5]
[405201608,1770900677918,-680.21,0.00039178,5]
[405201609,1770900677929,-3078.96,0.00039178,2]
[405201610,1770900677939,-61531.34,0.00039178,5]
[405201611,1770900677948,-504.37,0.00039178,5]
[405201612,1770900677957,-3293.71096341,0.000392,120]
[405201613,1770900677967,-583.7,0.00039452,5]
[405201614,1770900677976,-771.02,0.00039452,5]
[405201615,1770900677986,-1117.07,0.00039452,5]
[405201616,1770900677995,-500.0,0.00039452,5]
[405201617,1770900678005,-939.98,0.00039452,5]
[405201618,1770900678015,-914.41,0.00039452,5]
[405201619,1770900678024,-742.27,0.00039452,5]
[405201620,1770900678034,-863.41,0.00039452,5]
[405201621,1770900678043,-500.0,0.00039452,5]
[405201622,1770900678053,-666.32,0.00039452,5]
[405201623,1770900678063,-853.93,0.00039452,5]
[405201624,1770900678072,-308.64,0.00039452,5]
[405201625,1770900678081,-500.0,0.00039452,5]
[405201626,1770900678091,-500.0,0.00039452,5]
[405201627,1770900678178,-500.0,0.00039452,5]
[405201628,1770900678188,-707.95,0.00039452,5]
[405201629,1770900678198,-773.6,0.00039452,5]
[405201630,1770900678207,-500.0,0.00039452,5]
[405201631,1770900678216,-1614.44,0.00039452,5]
[405201632,1770900678226,-538.5,0.00039452,5]
[405201633,1770900678235,-517.22,0.00039452,5]
[405201634,1770900678245,-500.0,0.00039452,5]
[405201635,1770900678255,-8808.21,0.00039452,5]
[405201636,1770900678264,-593.39,0.00039452,2]
[405201637,1770900678273,-2336.57,0.00039452,5]
[405201638,1770900678283,-12247.88,0.00039452,5]
[405201639,1770900678292,-1253.57,0.00039452,5]
[405201640,1770900678302,-715.12,0.00039452,5]
[405201641,1770900678311,-5005.86,0.00039452,2]
[405201642,1770900678321,-500.0,0.00039452,5]
[405201643,1770900678330,-462.6191757,0.00039452,5]
[405201644,1770900678341,-702.48,0.00039452,5]
[405201645,1770900678351,-4185.11,0.00039452,5]
[405201646,1770900678360,-804.1,0.00039452,5]
[405201647,1770900678370,-1795.55,0.00039452,5]
[405201648,1770900678380,-680.21,0.00039452,5]
[405201649,1770900678389,-3078.96,0.00039452,2]
[405201650,1770900678399,-61531.34,0.00039452,5]
[405201651,1770900678408,-504.37,0.00039452,5]
[405201652,1770900678417,-200.0,0.0003951,120]
[405201653,1770900678427,-7004.0,0.00039525,5]
[405201654,1770900678436,-950.26907549,0.00039548,120]
[405201655,1770900678445,-190.1856634,0.00039567,5]
[405201656,1770900678455,-202.08137441,0.0003966,2]
[405201657,1770900678464,-11209.98596987,0.00039684,3]
[405201658,1770900678474,-2512.19,0.00039703,30]
[405201659,1770900678483,-583.7,0.00039726,5]
[405201660,1770900678493,-771.02,0.00039726,5]
[405201661,1770900678503,-1117.07,0.00039726,5]
[405201662,1770900678513,-500.0,0.00039726,5]
[405201663,1770900678523,-939.98,0.00039726,5]
[405201664,1770900678532,-914.41,0.00039726,5]
[405201665,1770900678542,-742.27,0.00039726,5]
[405201666,1770900678551,-863.41,0.00039726,5]
[405201667,1770900678561,-615.71740939,0.00039726,5]
[405201668,1770900678570,-666.32,0.00039726,5]
[405201669,1770900678579,-853.93,0.00039726,5]
[405201670,1770900678588,-308.64,0.00039726,5]
[405201671,1770900678598,-500.0,0.00039726,5]
[405201672,1770900678607,-500.0,0.00039726,5]
[405201673,1770900678616,-500.0,0.00039726,5]
[405201674,1770900678626,-707.95,0.00039726,5]
[405201675,1770900678635,-773.6,0.00039726,5]
[405201676,1770900678644,-500.0,0.00039726,5]
[405201677,1770900678654,-1614.44,0.00039726,5]
[405201678,1770900678663,-538.5,0.00039726,5]
[405201679,1770900678672,-517.22,0.00039726,5]
[405201680,1770900678681,-500.0,0.00039726,5]
[405201681,1770900678691,-8808.21,0.00039726,5]
[405201682,1770900678700,-593.39,0.00039726,2]
[405201683,1770900678710,-2336.57,0.00039726,5]
[405201684,1770900678719,-12247.88,0.00039726,5]
[405201685,1770900678729,-1253.57,0.00039726,5]
[405201686,1770900678739,-715.12,0.00039726,5]
[405201687,1770900678748,-5005.86,0.00039726,2]
[405201688,1770900678758,-500.0,0.00039726,5]
[405201689,1770900678768,-702.48,0.00039726,5]
[405201690,1770900678784,-4185.11,0.00039726,5]
[405201691,1770900678794,-804.1,0.00039726,5]
[405201692,1770900678804,-1795.55,0.00039726,5]
[405201693,1770900678813,-680.21,0.00039726,5]
[405201694,1770900678825,-3078.96,0.00039726,2]
[405201695,1770900678835,-61531.34,0.00039726,5]
[405201696,1770900678844,-504.37,0.00039726,5]
[405201697,1770900678854,-407.89748045,0.0003974,2]
[405201698,1770900678863,-501.26765,0.000398,120]
[405201699,1770900678873,-166.6505596,0.000399,120]
[405201700,1770900678882,-3415.64921129,0.00039927,7]
[405201701,1770900678892,-196.00677091,0.00039978,120]
[405201702,1770900678901,-3415.64921129,0.0003999,7]
[405201703,1770900678911,-164421.61920868,0.0004,120]
[405201704,1770900679021,-5000.02729574,0.0004,120]
[405201705,1770900679041,-476.75870345,0.00038356,120]
[405201706,1770900679076,200.0,0.000191,2]
[405201707,1770900679123,-541.68979955,0.00038356,120]
[405201708,1770900679133,-2479.751658,0.00038356,120]
[405201709,1770900679143,-151.0,0.00038356,120]
[405201710,1770900679152,-692.11725847,0.00038356,120]
[405201711,1770900679194,-326.33124453,0.00038356,120]
[405201712,1770900679204,-2479.751658,0.00038356,120]
[405201713,1770900679214,-151.0,0.00038356,120]
[405201714,1770900679224,-151.0,0.00038356,120]
[405201715,1770900679233,-1018.448503,0.00038356,120]
[405201716,1770900679243,-2479.751658,0.00038356,120]
[405201717,1770900679252,-769.52,0.00039178,5]
[405201718,1770900679262,-204.42871379,0.00039452,5]
[405201719,1770900679315,200.0,0.000192,2]
[405201720,1770900679478,200.0,0.000192,2]
[405201721,1770900679577,200.0,0.000193,2]
[405201722,1770900679644,200.0,0.000193,2]
[405201723,1770900679688,200.0,0.000194,2]
[405201724,1770900679760,200.0,0.000194,2]
[405201725,1770900679816,200.0,0.000195,2]
[405201726,1770900680437,353.66397142,0.0002352,2]
[405201745,1770900846335,500.0,0.00013699,2]
[405201746,1770900846388,1000.0,0.00014247,2]
[405201747,1770900846442,721.40863651,0.00014795,2]
[405201753,1770900907941,500.0,0.00013273,2]
[405201757,1770900939071,500.0,0.00013273,2]
[405201788,1770900964682,500.62468304,0.00013273,2]
[405201789,1770900969299,500.0,0.00013273,2]
[405201790,1770900974779,500.0,0.00013699,2]